Workbook

Sheet Page 118
A1: BASIC CASH FLOW VALUATION TEMPLATE
A2: Current free cash flow (FCF) | B2: 1000
A3: Growth rate of FCF, years 1-5 | B3: 0.08
A4: Long-term FCF growth rate | B4: 0.05
A5: Weighted average cost of capital (WACC) | B5: 0.11
A7: Year | B7: 0 | C7: 1 | D7: 2 | E7: 3 | F7: 4 | G7: 5
A8: Future FCFs | C8: =B2*(1+B3) -> 1080 | D8: =C8*(1+$B$3) -> 1166.4 | E8: =D8*(1+$B$3) -> 1259.712 | F8: =E8*(1+$B$3) -> 1360.48896 | G8: =F8*(1+$B$3) -> 1469.328077 | H8: =getformula(G8) -> <-- =F8*(1+$B$3)
A9: Terminal value | G9: =G8*(1+B4)/(B5-B4) -> 25713.24134 | H9: =getformula(G9) -> <-- =G8*(1+B4)/(B5-B4)
A10: Total | C10: =C8+C9 -> 1080 | D10: =D8+D9 -> 1166.4 | E10: =E8+E9 -> 1259.712 | F10: =F8+F9 -> 1360.48896 | G10: =G8+G9 -> 27182.56942 | H10: =getformula(G10) -> <-- =G8+G9
A12: Enterprise value | B12: =NPV(B5,C10:G10)*(1+B5)^0.5 -> 20932.73003 | C12: =getformula(B12) -> <-- =NPV(B5,C10:G10)*(1+B5)^0.5
A13: Add back initial cash | B13: 2000 | C13: <-- From current balance sheet
A14: Subtract out debt | B14: 10000 | C14: <-- From current balance sheet
A15: Equity value | B15: =B12+B13-B14 -> 12932.73003 | C15: =getformula(B15) -> <-- =B12+B13-B14
A16: Per share (1,000 shares) | B16: =B15/1000 -> 12.93273003 | C16: =getformula(B16) -> <-- =B15/1000

Sheet Page 121
A1: ABC CORPORATION Consolidated Statement of Cash Flows, 2008-2012
B2: 2008 | C2: 2009 | D2: 2010 | E2: 2011 | F2: 2012
A3: Operating Activities:
A4: Net earnings | B4: 479355 | C4: 495597 | D4: 534268 | E4: 505856 | F4: 520273
A5: Adjustments to reconcile net earnings to net cash provided by operating activities
A6: Add back depreciation and amortization | B6: 41583 | C6: 47647 | D6: 46438 | E6: 45839 | F6: 46622
A7: Changes in operating assets and liabilities:
A8: Subtract increase in accounts receivable | B8: 9387 | C8: 25951 | D8: -12724 | E8: 1685 | F8: -2153
A9: Subtract increase in inventories | B9: -37630 | C9: -22780 | D9: -16247 | E9: -15780 | F9: -5517
A10: Subtract increase in prepaid expenses and other assets | B10: -52191 | C10: 13573 | D10: 16255 | E10: 14703 | F10: -2975
A11: Add increase in accounts payable, accrued expenses, pensions, and other liabilities | B11: 29612 | C11: 51172 | D11: 6757 | E11: 40541 | F11: 60255
A12: Net cash provided by operating activities | B12: =SUM(B4:B11) -> 470116 | C12: =SUM(C4:C11) -> 611160 | D12: =SUM(D4:D11) -> 574747 | E12: =SUM(E4:E11) -> 592844 | F12: =SUM(F4:F11) -> 616505 | G12: =getformula(F12) -> <-- =SUM(F4:F11)
A14: Investing Activities:
A15: Short-term investments, net | B15: -5000 | C15: -55000 | D15: 50000 | E15: -10000 | F15: 20000
A16: Purchases of property, plant and equipment | B16: -48944 | C16: -70326 | D16: -89947 | E16: -37044 | F16: -88426
A17: Proceeds from dispositions of property, plant and equipment | B17: 197 | C17: 6956 | D17: 22942 | E17: 6179 | F17: 28693
A18: Net cash used in investing activities | B18: -53747 | C18: -118370 | D18: =SUM(D15:D17) -> -17005 | E18: =SUM(E15:E17) -> -40865 | F18: =SUM(F15:F17) -> -39733 | G18: =getformula(F18) -> <-- =SUM(F15:F17)
A20: Financing Activities:
A21: Repayment of debt | B21: 0 | C21: 0 | D21: -300000 | E21: 0 | F21: -7095
A22: Proceeds from revolving credit facility borrowings | B22: 1242431 | C22: 0 | D22: 0 | E22: 0 | F22: 250000
A23: Proceeds from the issuance of stock | B23: 48286 | C23: 114276 | D23: 69375 | E23: 68214 | F23: 37855
A24: Dividends paid | B24: -332986 | C24: -344128 | D24: -361208 | E24: -367499 | F24: -378325
A25: Stock repurchased | B25: -150095 | C25: -200031 | D25: -200038 | E25: -200003 | F25: -597738
A26: Net cash used in financing activities | B26: =SUM(B21:B25) -> 807636 | C26: =SUM(C21:C25) -> -429883 | D26: =SUM(D21:D25) -> -791871 | E26: =SUM(E21:E25) -> -499288 | F26: =SUM(F21:F25) -> -695303 | G26: =getformula(F26) -> <-- =SUM(F21:F25)
A28: Changes in cash balances | B28: =B12+B18+B26 -> 1224005 | C28: =C12+C18+C26 -> 62907 | D28: =D12+D18+D26 -> -234129 | E28: =E12+E18+E26 -> 52691 | F28: =F12+F18+F26 -> -118531 | G28: =getformula(F28) -> <-- =F12+F18+F26
A30: Supplemental disclosure of cash flow information
A31: Cash paid during the period for
A32: Income taxes | B32: 255043 | C32: 175972 | D32: 314735 | E32: 283618 | F32: 305094
A33: Interest | B33: 83553 | C33: 83551 | D33: 70351 | E33: 57151 | F33: 57910
A35: Income tax rate | B35: =B32/(B4+B32) -> 0.3472817192 | C35: =C32/(C4+C32) -> 0.2620311539 | D35: =D32/(D4+D32) -> 0.3707112931 | E35: =E32/(E4+E32) -> 0.359249323 | F35: =F32/(F4+F32) -> 0.3696464724 | G35: =getformula(F35) -> <-- =F32/(F4+F32)

Sheet Page 122
A1: ABC CORPORATION Consolidated Statement of Cash Flows, 2008-2012
B2: 2008 | C2: 2009 | D2: 2010 | E2: 2011 | F2: 2012
A3: Operating Activities:
A4: Net earnings | B4: 479355 | C4: 495597 | D4: 534268 | E4: 505856 | F4: 520273
A5: Adjustments to reconcile net earnings to net cash provided by operating activities
A6: Add back depreciation and amortization | B6: 41583 | C6: 47647 | D6: 46438 | E6: 45839 | F6: 46622
A7: Changes in operating assets and liabilities:
A8: Subtract increase in accounts receivable | B8: 9387 | C8: 25951 | D8: -12724 | E8: 1685 | F8: -2153
A9: Subtract increase in inventories | B9: -37630 | C9: -22780 | D9: -16247 | E9: -15780 | F9: -5517
A10: Subtract increase in prepaid expenses and other assets | B10: -52191 | C10: 13573 | D10: 16255 | E10: 14703 | F10: -2975
A11: Add increase in accounts payable, accrued expenses, pensions, and other liabilities | B11: 29612 | C11: 51172 | D11: 6757 | E11: 40541 | F11: 60255
A12: Net cash provided by operating activities | B12: =SUM(B4:B11) -> 470116 | C12: =SUM(C4:C11) -> 611160 | D12: =SUM(D4:D11) -> 574747 | E12: =SUM(E4:E11) -> 592844 | F12: =SUM(F4:F11) -> 616505 | G12: =getformula(F12) -> <-- =SUM(F4:F11)
A14: Investing Activities:
A15: Short-term investments, net
A16: Purchases of property, plant and equipment | B16: -48944 | C16: -70326 | D16: -89947 | E16: -37044 | F16: -88426
A17: Proceeds from dispositions of property, plant and equipment | B17: 197 | C17: 6956 | D17: 22942 | E17: 6179 | F17: 28693
A18: Net cash used in investing activities | B18: -53747 | C18: -118370 | D18: =SUM(D15:D17) -> -67005 | E18: =SUM(E15:E17) -> -30865 | F18: =SUM(F15:F17) -> -59733 | G18: =getformula(F18) -> <-- =SUM(F15:F17)
A20: Financing Activities:
A21: Repayment of debt
A22: Proceeds from revolving credit facility borrowings
A23: Proceeds from the issuance of stock
A24: Dividends paid
A25: Stock repurchased
A26: Net cash used in financing activities
A28: Free cash flow before interest adjustment | B28: =B12+B18+B26 -> 416369 | C28: =C12+C18+C26 -> 492790 | D28: =D12+D18+D26 -> 507742 | E28: =E12+E18+E26 -> 561979 | F28: =F12+F18+F26 -> 556772 | G28: =getformula(F28) -> <-- =F12+F18+F26
A29: Add back after-tax net interest | B29: =(1-B37)*B35 -> 54536.57052 | C29: =(1-C37)*C35 -> 61658.03506 | D29: 44271.08982 | E29: 36619.54194 | F29: 36503.77278 | G29: =getformula(F29) -> <-- =(1-F37)*F35
A30: Free cash flow (FCF) | B30: =B28+B29 -> 470905.5705 | C30: =C28+C29 -> 554448.0351 | D30: 552013.0898 | E30: 598598.5419 | F30: 593275.7728 | G30: =getformula(F30) -> <-- =F28+F29
A32: Supplemental disclosure of cash flow information
A33: Cash paid during the period for
A34: Income taxes | B34: 255043 | C34: 175972 | D34: 314735 | E34: 283618 | F34: 305094
A35: Interest | B35: 83553 | C35: 83551 | D35: 70351 | E35: 57151 | F35: 57910
A37: Income tax rate | B37: =B34/(B4+B34) -> 0.3472817192 | C37: =C34/(C4+C34) -> 0.2620311539 | D37: =D34/(D4+D34) -> 0.3707112931 | E37: =E34/(E4+E34) -> 0.359249323 | F37: =F34/(F4+F34) -> 0.3696464724 | G37: =getformula(F37) -> <-- =F34/(F4+F34)

Sheet Page 123
A1: ABC CORP. VALUATION
A2: Free cash flow (FCF) year ending 31 Dec. 2012 | B2: ='Page 122'!F30 -> 593275.7728 | C2: =getformula(B2) -> <-- ='Page 122'!F30
A3: Growth rate of FCF, years 1-5 | B3: 0.08 | C3: <-- Optimistic about short-term growth
A4: Long-term FCF growth rate | B4: =#REF! ->  | C4: <-- More pessimistic about long-term growth
A5: Weighted average cost of capital (WACC) | B5: 0.107
A7: Year | B7: 2012 | C7: 2013 | D7: 2014 | E7: 2015 | F7: 2016 | G7: 2017
A8: FCF | C8: =B2*(1+B3) -> 640737.8346 | D8: =C8*(1+$B$3) -> 691996.8614 | E8: =D8*(1+$B$3) -> 747356.6103 | F8: =E8*(1+$B$3) -> 807145.1391 | G8: =F8*(1+$B$3) -> 871716.7502 | H8: =getformula(G8) -> <-- =F8*(1+$B$3)
A9: Terminal value | G9: =G8*(1+B4)/(B3-B4) ->  | H9: =getformula(G9) -> <-- =G8*(1+B4)/(B3-B4)
A10: Total | C10: =C8+C9 -> 640737.8346 | D10: =D8+D9 -> 691996.8614 | E10: =E8+E9 -> 747356.6103 | F10: =F8+F9 -> 807145.1391 | G10: =G8+G9 ->  | H10: =getformula(G10) -> <-- =G8+G9
A12: Enterprise value | B12: =NPV(B5,C10:G10)*(1+B5)^0.5 ->  | C12: =getformula(B12) -> <-- =NPV(B5,C10:G10)*(1+B5)^0.5
A13: Add back initial cash and marketable securities | B13: 73697 | C13: <-- From current balance sheet
A14: Subtract out 2012 financial liabilities | B14: 1379106 | C14: <-- From current balance sheet
A15: Equity value | B15: =B12+B13-B14 ->  | C15: =getformula(B15) -> <-- =B12+B13-B14
A16: Per share (1 million shares outstanding) | B16: =B15/1000000 ->  | C16: =getformula(B16) -> <-- =B15/1000000
A18: Data table: Share value vs LT growth and WACC
A19: ="data table header, "&CHAR(10)&gggetformula(B20) -> data table header, =IF(B5>B4,B16,"nmf") --> | C19: Long-term growth ↓
B20: =IF(B5>B4,B16,"nmf") ->  | C20: 0 | D20: 0.03 | E20: 0.06 | F20: 0.09 | G20: 0.12
B21: 0.06 | C21: 10.3091323 | D21: 15.74143568 | E21: nmf | F21: nmf | G21: nmf
A22: WACC → | B22: 0.08 | C22: 9.484220704 | D22: 14.47827788 | E22: 34.45450659 | F22: nmf | G22: nmf
B23: 0.1 | C23: 8.736190792 | D23: 13.3344487 | E23: 31.72748035 | F23: -60.23767789 | G23: nmf
B24: 0.12 | C24: 8.05656211 | D24: 12.29669344 | E24: 29.25721875 | F24: -55.5454078 | G24: nmf
B25: 0.14 | C25: 7.437923224 | D25: 11.3534354 | E25: 27.01548411 | F25: -51.29475944 | G25: -12.13963766
B26: 0.16 | C26: 6.873780975 | D26: 10.49453864 | E26: 24.97756929 | F26: -47.43758397 | G26: -11.23000734
B27: 0.18 | C27: 6.358433161 | D27: 9.711107552 | E27: 23.12180512 | F27: -43.9316827 | G27: -10.40493879

Sheet Page 124
A1: MERCK CASH FLOW VALUATION TEMPLATE
A2: Current free cash flow (FCF) | B2: ='Merck Free Cash Flow'!D51 -> 10346 | C2: =getformula(B2) -> <-- ='Merck Free Cash Flow'!D51
A3: Growth rate of FCF, years 1-5 | B3: 0.03
A4: Long-term FCF growth rate | B4: 0.03 | C4: <-- critical question
A5: Weighted average cost of capital (WACC) | B5: 0.0566 | C5: <-- Chapter 2
A7: Year | B7: 0 | C7: 1 | D7: 2 | E7: 3 | F7: 4 | G7: 5
A8: FCF | C8: =B2*(1+$B$3) -> 10656.38 | D8: =C8*(1+$B$3) -> 10976.0714 | E8: =D8*(1+$B$3) -> 11305.35354 | F8: =E8*(1+$B$3) -> 11644.51415 | G8: 11993.84957 | H8: =getformula(G8) -> <-- =F8*(1+$B$3)
A9: Terminal value | G9: =G8*(1+B4)/(B5-B4) -> 464423.4985 | H9: =getformula(G9) -> <-- =G8*(1+B4)/(B5-B4)
A10: Total (sum of FCF+terminal) | C10: =C8+C9 -> 10656.38 | D10: =D8+D9 -> 10976.0714 | E10: 11305.35354 | F10: 11644.51415 | G10: 476417.3481 | H10: =getformula(G10) -> <-- =G8+G9
A12: Enterprise value | B12: =NPV(B5,C10:G10)*(1+B5)^0.5 -> 411797.1772 | C12: =getformula(B12) -> <-- =NPV(B5,C10:G10)*(1+B5)^0.5
A13: Add back initial cash | B13: =13531+1441 -> 14972 | C13: =getformula(B13) -> <-- =13531+1441
A14: Subtract out debt | B14: =1990+15525 -> 17515 | C14: <-- From current balance sheet
A15: Equity value | B15: =B12+B13-B14 -> 409254.1772 | C15: =getformula(B15) -> <-- =B12+B13-B14
A16: Number of shares outstanding | B16: =3576948356-536109713 -> 3040838643 | C16: <-- Merck's financial statements
A17: Share value from our model | B17: =B15/B16*1000000 -> 134.5859565 | C17: =getformula(B17) -> <-- =B15/B16*1000000
A18: Actual stock price (30 Dec 2011) | B18: 37.7
A20: ="Data table: Model share price as function of LT growth and WACC"&", short-term FCF growth rate = "&TEXT(B3,"0%") -> Data table: Model share price as function of LT growth and WACC, short-term FCF growth rate = 3%
C21: Long-term growth rate ↓
A22: =ggetformula(B22)&" -->" -> =IF(B5>B4,B17,"nmf") --> | B22: =IF(B5>B4,B17,"nmf") -> 134.5859565 | C22: -0.05 | D22: -0.04 | E22: -0.03 | F22: -0.02 | G22: 0
B23: 0.05 | C23: 45.70850849 | D23: 49.40304673 | E23: 54.02121953 | F23: 59.95887027 | G23: 78.95935263
B24: 0.052 | C24: 44.79027 | D24: 48.3101036 | E24: 52.68843321 | F24: 58.28296549 | G24: 75.92725959
B25: 0.054 | C25: 43.90757924 | D25: 47.26388788 | E25: 51.41931763 | F25: 56.69783649 | G25: 73.11989519
A26: WACC --> | B26: 0.056 | C26: 43.05842183 | D26: 46.26147693 | E26: 50.20942857 | F26: 55.19631485 | G26: 70.51317985
B27: 0.058 | C27: 42.24093258 | D27: 45.3001867 | E27: 49.05472585 | F27: 53.77196735 | G27: 68.08635533
B28: 0.06 | C28: 41.45338201 | D28: 44.37754791 | E28: 47.95152846 | F28: 52.41900414 | G28: 65.82143118
B29: 0.062 | C29: 40.69416419 | D29: 43.49128497 | E29: 46.89647548 | F29: 51.13220026 | G29: 63.70273831
B30: 0.064 | C30: 39.96178591 | D30: 42.63929734 | E30: 45.88649205 | F30: 49.90682836 | G30: 61.71656628
B31: 0.066 | C31: 39.25485695 | D31: 41.81964305 | E31: 44.91875959 | F31: 48.7386009 | G31: 59.85086653
B32: 0.068 | C32: 38.57208138 | D32: 41.03052399 | E32: 43.99068959 | F32: 47.62362009 | G32: 58.095008
B33: 0.07 | C33: 37.91224968 | D33: 40.27027286 | E33: 43.09990066 | F33: 46.55833465 | G33: 56.43957462
B34: 0.072 | C34: 37.27423167 | D34: 39.53734144 | E34: 42.24419823 | F34: 45.53950214 | G34: 54.87619656
B35: 0.074 | C35: 36.65697009 | D35: 38.83029021 | E35: 41.42155651 | F35: 44.56415606 | G35: 53.39740886

Sheet Merck Free Cash Flow
A1: MERCK & Co. CONSOLIDATED STATEMENT OF CASH FLOWS
B2: 2009 | C2: 2010 | D2: 2011
A3: Cash flow from operating activities
A4: Net income | B4: 13022 | C4: 982 | D4: 6392
A5: Adjustments to reconcile net income to net cash provided by operating activities
A6: Depreciation | B6: 2576 | C6: 7381 | D6: 7427
A7: Intangible asset impairment charges | C7: 2441 | D7: 705 | E7: <-- Impairment not cash, simon says recurring
A8: Gain on disposition of interest in equity investment method | B8: -3163 | D8: -136 | E8: <-- same logic as above
A9: Gain on AstraZeneca LP asset option exercise | E9: <-- not recurring
A10: Gain related to Merck/Schering-Plough partnernship | B10: -7530 | E10: <-- not cash or recurring leave as is
A11: Eqyity income from affiliates | B11: -2235 | C11: -587 | D11: -610 | E11: <-- leave, non-cash income that we reported
A12: Dividends and distributions from equity affiliates | B12: 1724 | C12: 324 | D12: 216 | E12: <-- leave, but investigate?
A13: Deferred income taxes | B13: 1821 | C13: -1092 | D13: -1537 | E13: <-- leave; difference btw reported and actual depr.
A14: Share-based compensation | B14: 415 | C14: 509 | D14: 369 | E14: <-- leave; accounting for employee stock options
A15: Other | B15: -535 | C15: 377 | D15: 323 | E15: <-- accept; maybe investigate?
A16: Net changes in assets and liabilities
A17: Accounts receivable | B17: 165 | C17: -1089 | D17: -1168 | E17: CHANGES IN NET WORKING CAPITAL
A18: Inventories | B18: 1211 | C18: 1990 | D18: -678
A19: Trace accounts payable | B19: -45 | C19: 124 | D19: 182
A20: Accrued and other current liabilities | B20: -4003 | C20: 35 | D20: 1444
A21: Income taxes payable | B21: -365 | C21: 128 | D21: -277
A22: Noncurrent liabilities | B22: 231 | C22: -98 | D22: -7
A23: Other | B23: 103 | C23: -160 | D23: -262
A24: Net cash provided by operating activities | B24: =SUM(B4:B23) -> 3392 | C24: =SUM(C4:C23) -> 11265 | D24: =SUM(D4:D23) -> 12383 | E24: =getformula(D24) -> <-- =SUM(D4:D23)
A26: Cash flows from investing activities
A27: Capital expenditures | B27: -1461 | C27: -1678 | D27: -1723 | E27: <-- operations, recurring
A28: Purchases of securities and other investments | E28: <-- not operations
A29: Proceeds from sales of secrutieis and other investments | E29: <-- not operations
A30: Acquisitions of business, net of cash acquired | B30: 4000 | D30: 175 | E30: <-- operational, recurring
A31: Dispositions of business, net of cash divested | B31: -130 | C31: -256 | D31: -373 | E31: <-- operational, recurring
A32: Scherin-Plough merger, net of cash acquired | E32: <-- not recurring
A33: Proceeds from AstraZeneca LP asset option exercise | E33: <-- not recurring
A34: Decrease in restricted assets | E34: <-- operational, not recurring
A35: Other | B35: 171 | C35: 150 | D35: -116 | E35: <-- who the hell knows? Quite small
A36: Net cash (used in) provided by investing activities | B36: =SUM(B27:B35) -> 2580 | C36: =SUM(C27:C35) -> -1784 | D36: =SUM(D27:D35) -> -2037 | E36: =getformula(D36) -> <-- =SUM(D27:D35)
A39: Cash flows from financing activities
A40: Net change in short-term borrowoings | E40: NOT PART OF FREE CASH FLOWS
A41: Payments on debt
A42: Proceeds form issuance of deb
A43: tPurhcases of treasury stock
A44: Dividends paid to stockholders
A45: Other dividends paid
A46: Proceeds from exercise of stock options
A47: Other dividends paid
A48: Net cash used in financing activities
A50: Effect of Exchange rate changes on cash and cash equivalents
A51: Free cash flow | B51: =B24+B36+B48+B50 -> 5972 | C51: =C24+C36+C48+C50 -> 9481 | D51: =D24+D36+D48+D50 -> 10346 | E51: =getformula(D51) -> <-- =D24+D36+D48+D50

Sheet Merck CSCF
A1: MERCK & Co. CONSOLIDATED STATEMENT OF CASH FLOWS
B2: 2009 | C2: 2010 | D2: 2011
A3: Cash flow from operating activities
A4: Net income | B4: 13022 | C4: 982 | D4: 6392
A5: Adjustments to reconcile net income to net cash provided by operating activities
A6: Depreciation | B6: 2576 | C6: 7381 | D6: 7427
A7: Intangible asset impairment charges | C7: 2441 | D7: 705
A8: Gain on disposition of interest in equity investment method | B8: -3163 | D8: -136
A9: Gain on AstraZeneca LP asset option exercise | C9: -443
A10: Gain related to Merck/Shcering-Plough partnernship | B10: -7530
A11: Eqyity income from affiliates | B11: -2235 | C11: -587 | D11: -610
A12: Dividends and distributions from equity affiliates | B12: 1724 | C12: 324 | D12: 216
A13: Deferred income txes | B13: 1821 | C13: -1092 | D13: -1537
A14: Share-based compensation | B14: 415 | C14: 509 | D14: 369
A15: Other | B15: -535 | C15: 377 | D15: 323
A16: Net changes in assets and liabilities
A17: Accounts receivable | B17: 165 | C17: -1089 | D17: -1168
A18: Inventories | B18: 1211 | C18: 1990 | D18: -678
A19: Trace accounts payable | B19: -45 | C19: 124 | D19: 182
A20: Accrued and other current liabilities | B20: -4003 | C20: 35 | D20: 1444
A21: Income taxes payable | B21: -365 | C21: 128 | D21: -277
A22: Noncurrent liabilities | B22: 231 | C22: -98 | D22: -7
A23: Other | B23: 103 | C23: -160 | D23: -262
A24: Net cash provided by operating activities | B24: =SUM(B4:B23) -> 3392 | C24: =SUM(C4:C23) -> 10822 | D24: =SUM(D4:D23) -> 12383 | E24: =getformula(D24) -> <-- =SUM(D4:D23)
A26: Cash flows from investing activities
A27: Capital expenditures | B27: -1461 | C27: -1678 | D27: -1723
A28: Purchases of securities and other investments | B28: -3071 | C28: -7197 | D28: -7325
A29: Proceeds from sales of secrutieis and other investments | B29: 10942 | C29: 4561 | D29: 6149
A30: Acquisitions of business, net of cash acquired | B30: 4000 | D30: 175
A31: Dispositions of business, net of cash divested | B31: -130 | C31: -256 | D31: -373
A32: Scherin-Plough merger, net of cash acquired | B32: -12843 | D32: 323
A33: Proceeds from AstraZeneca LP asset option exercise | C33: 647
A34: Decrease in restricted assets | B34: 5548 | C34: 276
A35: Other | B35: 171 | C35: 150 | D35: -116
A36: Net cash (used in) provided by investing activities | B36: =SUM(B27:B35) -> 3156 | C36: =SUM(C27:C35) -> -3497 | D36: =SUM(D27:D35) -> -2890 | E36: =getformula(D36) -> <-- =SUM(D27:D35)
A39: Cash flows from financing activities
A40: Net change in short-term borrowoings | B40: -2422 | C40: 90 | D40: 1076
A41: Payments on debt | B41: -25 | C41: -1341 | D41: -1547
A42: Proceeds form issuance of deb | B42: 4228 | C42: 1999
A43: tPurhcases of treasury stock | C43: -1593 | D43: -1921
A44: Dividends paid to stockholders | B44: -3215 | C44: -4734 | D44: -4691
A45: Other dividends paid | B45: -264 | C45: -119 | D45: -120
A46: Proceeds from exercise of stock options | B46: 186 | C46: 363 | D46: 321
A47: Other dividends paid | B47: -126 | C47: -106 | D47: -22
A48: Net cash used in financing activities | B48: =SUM(B40:B47) -> -1638 | C48: =SUM(C40:C47) -> -5441 | D48: =SUM(D40:D47) -> -6904 | E48: =getformula(D48) -> <-- =SUM(D40:D47)
A50: Effect of Exchange rate changes on cash and cash equivalents | B50: 33 | C50: -295 | D50: 42
A51: Net increase in cash and cash equivalents | B51: =B24+B36+B48+B50 -> 4943 | C51: =C24+C36+C48+C50 -> 1589 | D51: =D24+D36+D48+D50 -> 2631 | E51: =getformula(D51) -> <-- =D24+D36+D48+D50

Sheet Merck balance sheet

Sheet Interest, Note 16
